[Event "Top 12 Féminin 2026"]
[Site "Asnières-sur-Seine, France"]
[Date "2026.05.17"]
[Round "5.3"]
[White "Belenkaya, Dina"]
[Black "Alfano, Emilie"]
[Result "1-0"]
[TimeControl "1h30 / 40 moves + 30m + 30sec/move"]
[WhiteTitle "WGM"]
[BlackTitle "WFM"]
[WhiteFideId "-"]
[BlackFideId "-"]
[WhiteElo "2186"]
[BlackElo "2051"]

1. d4 {[%clk 01:25:27]} {[%emt 00:05:32]} d5 {[%clk 01:30:52]} {[%emt
00:00:08]} 2. c4 {[%clk 01:25:48]} {[%emt 00:00:09]} e6 {[%clk 01:31:17]}
{[%emt 00:00:05]} 3. Nc3 {[%clk 01:26:14]} {[%emt 00:00:04]} Nf6 {[%clk
01:31:40]} {[%emt 00:00:08]} 4. cxd5 {[%clk 01:26:37]} {[%emt 00:00:07]} exd5
{[%clk 01:32:04]} {[%emt 00:00:05]} 5. Bg5 {[%clk 01:27:01]} {[%emt 00:00:06]}
c6 {[%clk 01:32:27]} {[%emt 00:00:07]} 6. e3 {[%clk 01:27:28]} {[%emt
00:00:03]} Bd6 {[%clk 01:32:48]} {[%emt 00:00:08]} 7. Bd3 {[%clk 01:26:57]}
{[%emt 00:01:01]} O-O {[%clk 01:32:59]} {[%emt 00:00:19]} 8. Nf3 {[%clk
01:25:19]} {[%emt 00:02:07]} Re8 {[%clk 01:30:17]} {[%emt 00:03:13]} 9. O-O
{[%clk 01:18:31]} {[%emt 00:07:18]} Be6 {[%clk 01:20:10]} {[%emt 00:10:36]} 10.
Ne5 {[%clk 01:16:39]} {[%emt 00:02:22]} h6 {[%clk 00:55:29]} {[%emt 00:25:11]}
11. Bh4 {[%clk 01:16:16]} {[%emt 00:00:52]} Nbd7 {[%clk 00:41:41]} {[%emt
00:14:19]} 12. f4 {[%clk 01:16:09]} {[%emt 00:00:38]} Nf8 {[%clk 00:41:15]}
{[%emt 00:00:56]} 13. g4 {[%clk 01:13:14]} {[%emt 00:03:24]} Be7 {[%clk
00:33:32]} {[%emt 00:08:13]} 14. Bg3 {[%clk 01:07:47]} {[%emt 00:05:57]} N6h7
{[%clk 00:21:08]} {[%emt 00:12:54]} 15. h3 {[%clk 00:54:53]} {[%emt 00:13:24]}
a6 {[%clk 00:15:04]} {[%emt 00:06:34]} 16. Rc1 {[%clk 00:53:05]} {[%emt
00:02:17]} Bc8 {[%clk 00:02:09]} {[%emt 00:13:25]} 17. Bb1 {[%clk 00:52:15]}
{[%emt 00:01:20]} Qd6 {[%clk 00:00:33]} {[%emt 00:02:06]} 18. Ne2 {[%clk
00:47:53]} {[%emt 00:04:52]} Qd8 {[%clk 00:00:33]} {[%emt 00:00:31]} 19. Bh2
{[%clk 00:45:04]} {[%emt 00:03:19]} Bd7 {[%clk 00:00:35]} {[%emt 00:00:29]} 20.
Ng3 {[%clk 00:44:58]} {[%emt 00:00:36]} Bd6 {[%clk 00:00:33]} {[%emt 00:00:31]}
21. Rf3 {[%clk 00:41:29]} {[%emt 00:03:59]} Qe7 {[%clk 00:00:32]} {[%emt
00:00:32]} 22. Qd3 {[%clk 00:39:10]} {[%emt 00:02:48]} Be6 {[%clk 00:00:32]}
{[%emt 00:00:30]} 23. Qc2 {[%clk 00:35:42]} {[%emt 00:03:57]} c5 {[%clk
00:00:33]} {[%emt 00:00:31]} 24. Qg2 {[%clk 00:33:11]} {[%emt 00:03:00]} cxd4
{[%clk 00:00:33]} {[%emt 00:00:30]} 25. exd4 {[%clk 00:33:35]} {[%emt
00:00:05]} Rec8 {[%clk 00:00:38]} {[%emt 00:00:25]} 26. Rd1 {[%clk 00:32:45]}
{[%emt 00:01:20]} Rc7 {[%clk 00:00:34]} {[%emt 00:00:35]} 27. Re3 {[%clk
00:31:00]} {[%emt 00:02:15]} Qd8 {[%clk 00:00:33]} {[%emt 00:00:31]} 28. f5
{[%clk 00:27:11]} {[%emt 00:04:19]} f6 {[%clk 00:00:32]} {[%emt 00:00:31]} 29.
fxe6 {[%clk 00:26:25]} {[%emt 00:01:15]} fxe5 {[%clk 00:00:57]} {[%emt
00:00:05]} 30. Qxd5 {[%clk 00:26:27]} {[%emt 00:00:28]} Nf6 {[%clk 00:00:33]}
{[%emt 00:00:55]} 31. Qb3 {[%clk 00:26:38]} {[%emt 00:00:18]} Qe7 {[%clk
00:00:31]} {[%emt 00:00:32]} 32. Nf5 {[%clk 00:26:50]} {[%emt 00:00:18]} Qxe6
{[%clk 00:00:34]} {[%emt 00:00:28]} 33. Nxd6 {[%clk 00:26:17]} {[%emt
00:01:02]} Qxb3 {[%clk 00:00:43]} {[%emt 00:00:21]} 34. Rxb3 {[%clk 00:26:16]}
{[%emt 00:00:31]} exd4 {[%clk 00:00:33]} {[%emt 00:00:40]} 35. Nxb7 {[%clk
00:26:11]} {[%emt 00:00:36]} Re7 {[%clk 00:00:36]} {[%emt 00:00:26]} 36. Bd3
{[%clk 00:26:19]} {[%emt 00:00:22]} Ne6 {[%clk 00:00:33]} {[%emt 00:00:34]} 37.
Bc4 {[%clk 00:25:43]} {[%emt 00:01:06]} Kh8 {[%clk 00:00:40]} {[%emt 00:00:23]}
38. Re1 {[%clk 00:24:34]} {[%emt 00:01:39]} 1-0

[Event "Top 12 Féminin 2026"]
[Site "Asnières-sur-Seine, France"]
[Date "2026.05.17"]
[Round "5.4"]
[White "Negre, Emilie"]
[Black "Dornbusch, Tatiana"]
[Result "1/2-1/2"]
[TimeControl "1h30 / 40 moves + 30m + 30sec/move"]
[WhiteTitle "WFM"]
[BlackTitle "WGM"]
[WhiteFideId "-"]
[BlackFideId "-"]
[WhiteElo "2101"]
[BlackElo "2189"]

1. e4 {[%clk 01:30:53]} {[%emt 00:00:06]} e5 {[%clk 01:28:45]} {[%emt
00:02:16]} 2. Nc3 {[%clk 01:31:12]} {[%emt 00:00:11]} Nf6 {[%clk 01:27:01]}
{[%emt 00:02:15]} 3. d4 {[%clk 01:31:16]} {[%emt 00:00:26]} exd4 {[%clk
01:25:15]} {[%emt 00:02:16]} 4. Qxd4 {[%clk 01:31:38]} {[%emt 00:00:07]} Nc6
{[%clk 01:24:29]} {[%emt 00:01:16]} 5. Qd3 {[%clk 01:31:59]} {[%emt 00:00:09]}
Bb4 {[%clk 01:08:21]} {[%emt 00:16:39]} 6. Bd2 {[%clk 01:29:11]} {[%emt
00:03:17]} O-O {[%clk 01:03:58]} {[%emt 00:04:53]} 7. O-O-O {[%clk 01:28:45]}
{[%emt 00:00:55]} Qe7 {[%clk 00:59:50]} {[%emt 00:04:40]} 8. Nge2 {[%clk
01:22:59]} {[%emt 00:06:15]} Qd6 {[%clk 00:49:54]} {[%emt 00:10:27]} 9. Qh3
{[%clk 01:02:07]} {[%emt 00:21:21]} Qe6 {[%clk 00:46:57]} {[%emt 00:03:28]} 10.
Qh4 {[%clk 01:00:19]} {[%emt 00:02:17]} Qg4 {[%clk 00:42:12]} {[%emt 00:05:15]}
11. Bg5 {[%clk 00:53:35]} {[%emt 00:07:14]} Qxh4 {[%clk 00:42:12]} {[%emt
00:00:30]} 12. Bxh4 {[%clk 00:54:00]} {[%emt 00:00:05]} Be7 {[%clk 00:42:12]}
{[%emt 00:00:30]} 13. f3 {[%clk 00:51:52]} {[%emt 00:02:38]} a6 {[%clk
00:37:32]} {[%emt 00:05:11]} 14. g4 {[%clk 00:48:39]} {[%emt 00:03:42]} Re8
{[%clk 00:29:21]} {[%emt 00:08:42]} 15. Bg3 {[%clk 00:48:06]} {[%emt 00:01:03]}
d6 {[%clk 00:29:18]} {[%emt 00:00:33]} 16. h4 {[%clk 00:41:27]} {[%emt
00:07:09]} b5 {[%clk 00:21:50]} {[%emt 00:07:59]} 17. Nf4 {[%clk 00:36:57]}
{[%emt 00:04:59]} Ne5 {[%clk 00:18:51]} {[%emt 00:03:31]} 18. g5 {[%clk
00:33:59]} {[%emt 00:03:28]} Nfd7 {[%clk 00:18:58]} {[%emt 00:00:22]} 19. Nfd5
{[%clk 00:33:35]} {[%emt 00:00:54]} Bd8 {[%clk 00:19:03]} {[%emt 00:00:25]} 20.
f4 {[%clk 00:26:15]} {[%emt 00:07:50]} Nc6 {[%clk 00:16:44]} {[%emt 00:02:48]}
21. b4 {[%clk 00:17:49]} {[%emt 00:08:56]} Ne7 {[%clk 00:15:23]} {[%emt
00:01:51]} 22. Ne3 {[%clk 00:15:36]} {[%emt 00:02:43]} Nb6 {[%clk 00:14:59]}
{[%emt 00:00:54]} 23. f5 {[%clk 00:14:33]} {[%emt 00:01:33]} Nc6 {[%clk
00:14:12]} {[%emt 00:01:17]} 24. a3 {[%clk 00:14:41]} {[%emt 00:00:22]} Ne5
{[%clk 00:13:09]} {[%emt 00:01:33]} 25. Bxe5 {[%clk 00:12:35]} {[%emt
00:02:36]} Rxe5 {[%clk 00:12:02]} {[%emt 00:01:37]} 26. Rg1 {[%clk 00:11:51]}
{[%emt 00:01:13]} Bb7 {[%clk 00:09:09]} {[%emt 00:03:23]} 27. f6 {[%clk
00:07:58]} {[%emt 00:04:23]} Na4 {[%clk 00:05:10]} {[%emt 00:04:28]} 28. Nxa4
{[%clk 00:06:50]} {[%emt 00:01:39]} bxa4 {[%clk 00:05:25]} {[%emt 00:00:15]} 29.
Nf5 {[%clk 00:06:36]} {[%emt 00:00:41]} Bxe4 {[%clk 00:02:28]} {[%emt
00:03:30]} 30. Nxg7 {[%clk 00:07:01]} {[%emt 00:00:05]} a5 {[%clk 00:02:14]}
{[%emt 00:00:44]} 31. bxa5 {[%clk 00:04:57]} {[%emt 00:02:33]} Raxa5 {[%clk
00:02:26]} {[%emt 00:00:18]} 32. Kd2 {[%clk 00:04:45]} {[%emt 00:00:41]} Rad5+
{[%clk 00:01:28]} {[%emt 00:01:30]} 33. Bd3 {[%clk 00:04:50]} {[%emt 00:00:25]}
Bxd3 {[%clk 00:01:33]} {[%emt 00:00:24]} 34. cxd3 {[%clk 00:05:15]} {[%emt
00:00:06]} c6 {[%clk 00:01:35]} {[%emt 00:00:28]} 35. Rg4 {[%clk 00:02:50]}
{[%emt 00:02:54]} Ba5+ {[%clk 00:01:14]} {[%emt 00:00:51]} 36. Kc1 {[%clk
00:03:05]} {[%emt 00:00:15]} Rc5+ {[%clk 00:01:17]} {[%emt 00:00:28]} 37. Kb1
{[%clk 00:02:29]} {[%emt 00:01:04]} Rb5+ {[%clk 00:01:36]} {[%emt 00:00:12]} 38.
Kc1 {[%clk 00:02:47]} {[%emt 00:00:12]} Rec5+ {[%clk 00:01:02]} {[%emt
00:01:05]} 39. Rc4 {[%clk 00:03:06]} {[%emt 00:00:11]} h6 {[%clk 00:01:10]}
{[%emt 00:00:22]} 40. gxh6 {[%clk 00:01:21]} {[%emt 00:02:15]} Kh7 {[%clk
00:01:10]} {[%emt 00:00:30]} 41. Ne8 {[%clk 00:00:47]} {[%emt 00:01:04]} d5
{[%clk 00:27:17]} {[%emt 00:04:24]} 42. Rxc5 {[%clk 00:28:09]} {[%emt
00:03:08]} Rxc5+ {[%clk 00:25:06]} {[%emt 00:02:41]} 43. Kb1 {[%clk 00:28:37]}
{[%emt 00:00:02]} Rb5+ {[%clk 00:25:15]} {[%emt 00:00:21]} 44. Kc2 {[%clk
00:28:10]} {[%emt 00:00:54]} Rc5+ {[%clk 00:20:30]} {[%emt 00:05:17]} 45. Kb1
{[%clk 00:28:27]} {[%emt 00:00:13]} Rb5+ {[%clk 00:20:39]} {[%emt 00:00:22]} 46.
Kc2 {[%clk 00:28:50]} {[%emt 00:00:07]} Rc5+ {[%clk 00:19:43]} {[%emt
00:01:26]} 1/2-1/2

[Event "Top 12 Féminin 2026"]
[Site "Asnières-sur-Seine, France"]
[Date "2026.05.17"]
[Round "5.5"]
[White "Savina, Anastasia"]
[Black "Batsiashvili, Nino"]
[Result "1/2-1/2"]
[TimeControl "1h30 / 40 moves + 30m + 30sec/move"]
[WhiteTitle "IM"]
[BlackTitle "GM"]
[WhiteFideId "-"]
[BlackFideId "-"]
[WhiteElo "2344"]
[BlackElo "2475"]

1. d4 {[%clk 01:28:46]} {[%emt 00:02:14]} d5 {[%clk 01:30:54]} {[%emt
00:00:07]} 2. c4 {[%clk 01:29:08]} {[%emt 00:00:08]} e6 {[%clk 01:31:22]}
{[%emt 00:00:02]} 3. Nf3 {[%clk 01:29:17]} {[%emt 00:00:20]} Nf6 {[%clk
01:31:48]} {[%emt 00:00:05]} 4. g3 {[%clk 01:29:31]} {[%emt 00:00:15]} Be7
{[%clk 01:32:13]} {[%emt 00:00:05]} 5. Bg2 {[%clk 01:29:46]} {[%emt 00:00:14]}
O-O {[%clk 01:32:39]} {[%emt 00:00:04]} 6. O-O {[%clk 01:30:11]} {[%emt
00:00:05]} a5 {[%clk 01:33:07]} {[%emt 00:00:03]} 7. Qc2 {[%clk 01:29:56]}
{[%emt 00:00:44]} Nbd7 {[%clk 01:33:25]} {[%emt 00:00:12]} 8. Rd1 {[%clk
01:29:15]} {[%emt 00:01:10]} dxc4 {[%clk 01:33:45]} {[%emt 00:00:10]} 9. Na3
{[%clk 01:28:30]} {[%emt 00:01:15]} Bxa3 {[%clk 01:34:02]} {[%emt 00:00:14]} 10.
bxa3 {[%clk 01:28:55]} {[%emt 00:00:05]} b5 {[%clk 01:34:28]} {[%emt 00:00:03]}
11. Rb1 {[%clk 01:28:23]} {[%emt 00:01:02]} Ba6 {[%clk 01:34:49]} {[%emt
00:00:09]} 12. Ne5 {[%clk 01:24:36]} {[%emt 00:04:16]} Nd5 {[%clk 01:35:01]}
{[%emt 00:00:19]} 13. Nc6 {[%clk 01:23:51]} {[%emt 00:01:16]} Qe8 {[%clk
01:35:28]} {[%emt 00:00:02]} 14. e4 {[%clk 01:22:56]} {[%emt 00:01:25]} Ne7
{[%clk 01:35:44]} {[%emt 00:00:14]} 15. Nxa5 {[%clk 01:23:11]} {[%emt
00:00:15]} Nb6 {[%clk 01:35:45]} {[%emt 00:00:28]} 16. Bd2 {[%clk 01:22:44]}
{[%emt 00:00:58]} Qd7 {[%clk 01:22:39]} {[%emt 00:13:36]} 17. Bb4 {[%clk
01:22:05]} {[%emt 00:01:10]} Rfe8 {[%clk 01:15:10]} {[%emt 00:07:58]} 18. d5
{[%clk 01:17:53]} {[%emt 00:04:42]} exd5 {[%clk 01:03:45]} {[%emt 00:11:56]} 19.
exd5 {[%clk 01:17:29]} {[%emt 00:00:54]} Nexd5 {[%clk 00:57:23]} {[%emt
00:06:51]} 20. Bc5 {[%clk 01:16:31]} {[%emt 00:01:28]} Rac8 {[%clk 00:40:11]}
{[%emt 00:17:42]} 21. Bxb6 {[%clk 01:16:16]} {[%emt 00:00:45]} cxb6 {[%clk
00:40:34]} {[%emt 00:00:07]} 22. Rxd5 {[%clk 01:15:07]} {[%emt 00:01:39]} Qc7
{[%clk 00:38:04]} {[%emt 00:03:00]} 23. Nb3 {[%clk 01:13:42]} {[%emt 00:01:56]}
cxb3 {[%clk 00:36:24]} {[%emt 00:02:10]} 24. Qxc7 {[%clk 01:06:36]} {[%emt
00:07:35]} Rxc7 {[%clk 00:36:53]} {[%emt 00:00:02]} 25. axb3 {[%clk 01:06:26]}
{[%emt 00:00:39]} Kf8 {[%clk 00:29:35]} {[%emt 00:07:49]} 26. Bf1 {[%clk
00:42:44]} {[%emt 00:24:12]} Rc5 {[%clk 00:29:40]} {[%emt 00:00:26]} 27. Rd6
{[%clk 00:29:19]} {[%emt 00:13:55]} Re6 {[%clk 00:29:11]} {[%emt 00:01:00]} 28.
Rd8+ {[%clk 00:29:08]} {[%emt 00:00:40]} Re8 {[%clk 00:28:16]} {[%emt
00:01:24]} 29. Rxe8+ {[%clk 00:24:55]} {[%emt 00:04:44]} Kxe8 {[%clk 00:28:45]}
{[%emt 00:00:01]} 30. a4 {[%clk 00:25:06]} {[%emt 00:00:19]} Ke7 {[%clk
00:21:19]} {[%emt 00:07:55]} 31. Rd1 {[%clk 00:21:34]} {[%emt 00:04:03]} g5
{[%clk 00:15:49]} {[%emt 00:06:00]} 32. b4 {[%clk 00:05:18]} {[%emt 00:16:46]}
1/2-1/2

[Event "Top 12 Féminin 2026"]
[Site "Asnières-sur-Seine, France"]
[Date "2026.05.17"]
[Round "5.6"]
[White "Guichard, Pauline"]
[Black "Zatonskih, Anna"]
[Result "1/2-1/2"]
[TimeControl "1h30 / 40 moves + 30m + 30sec/move"]
[WhiteTitle "IM"]
[BlackTitle "IM"]
[WhiteFideId "-"]
[BlackFideId "-"]
[WhiteElo "2333"]
[BlackElo "2317"]

1. d4 {[%clk 01:30:27]} {[%emt 00:00:33]} d5 {[%clk 01:29:23]} {[%emt
00:01:37]} 2. c4 {[%clk 01:29:39]} {[%emt 00:01:18]} e6 {[%clk 01:29:40]}
{[%emt 00:00:13]} 3. Nc3 {[%clk 01:30:01]} {[%emt 00:00:08]} Be7 {[%clk
01:29:18]} {[%emt 00:00:52]} 4. Nf3 {[%clk 01:30:08]} {[%emt 00:00:22]} Nf6
{[%clk 01:29:42]} {[%emt 00:00:06]} 5. Bg5 {[%clk 01:30:27]} {[%emt 00:00:11]}
O-O {[%clk 01:26:49]} {[%emt 00:03:24]} 6. e3 {[%clk 01:30:29]} {[%emt
00:00:29]} Nbd7 {[%clk 01:24:52]} {[%emt 00:02:26]} 7. Rc1 {[%clk 01:26:36]}
{[%emt 00:04:23]} h6 {[%clk 01:19:16]} {[%emt 00:06:07]} 8. Bh4 {[%clk
01:25:56]} {[%emt 00:01:09]} c5 {[%clk 01:09:07]} {[%emt 00:10:40]} 9. cxd5
{[%clk 01:05:18]} {[%emt 00:21:08]} Nxd5 {[%clk 01:02:21]} {[%emt 00:07:16]} 10.
Bxe7 {[%clk 01:05:24]} {[%emt 00:00:23]} Nxe7 {[%clk 01:02:46]} {[%emt
00:00:05]} 11. Bb5 {[%clk 01:05:03]} {[%emt 00:00:51]} cxd4 {[%clk 01:00:48]}
{[%emt 00:02:28]} 12. Qxd4 {[%clk 01:02:23]} {[%emt 00:03:10]} Nb6 {[%clk
00:51:39]} {[%emt 00:09:39]} 13. O-O {[%clk 00:55:56]} {[%emt 00:06:56]} Qxd4
{[%clk 00:42:01]} {[%emt 00:10:08]} 14. Nxd4 {[%clk 00:56:18]} {[%emt
00:00:08]} Rd8 {[%clk 00:41:52]} {[%emt 00:00:40]} 15. Be2 {[%clk 00:39:27]}
{[%emt 00:17:21]} Bd7 {[%clk 00:34:53]} {[%emt 00:07:30]} 16. Bf3 {[%clk
00:39:36]} {[%emt 00:00:20]} Rab8 {[%clk 00:32:56]} {[%emt 00:02:28]} 17. Rc2
{[%clk 00:36:01]} {[%emt 00:04:04]} Kf8 {[%clk 00:25:55]} {[%emt 00:07:30]} 18.
Rfc1 {[%clk 00:34:54]} {[%emt 00:01:37]} a6 {[%clk 00:22:49]} {[%emt 00:03:37]}
19. Kf1 {[%clk 00:29:31]} {[%emt 00:05:52]} e5 {[%clk 00:19:46]} {[%emt
00:03:33]} 20. Nb3 {[%clk 00:29:20]} {[%emt 00:00:41]} Bc6 {[%clk 00:19:55]}
{[%emt 00:00:21]} 21. Na5 {[%clk 00:26:59]} {[%emt 00:02:51]} Bxf3 {[%clk
00:18:15]} {[%emt 00:02:10]} 22. gxf3 {[%clk 00:27:24]} {[%emt 00:00:05]} Nbd5
{[%clk 00:14:59]} {[%emt 00:03:47]} 23. a3 {[%clk 00:14:22]} {[%emt 00:13:32]}
Nxc3 {[%clk 00:13:09]} {[%emt 00:02:20]} 24. Rxc3 {[%clk 00:14:44]} {[%emt
00:00:08]} b6 {[%clk 00:08:44]} {[%emt 00:04:55]} 25. Nc4 {[%clk 00:13:02]}
{[%emt 00:02:12]} f6 {[%emt 00:00:32]} 26. Ke2 {[%clk 00:12:43]} {[%emt
00:00:37]} Kf7 {[%clk 00:08:37]} {[%emt 00:00:46]} 27. Nd2 {[%clk 00:11:00]}
{[%emt 00:02:12]} Rbc8 {[%clk 00:06:35]} {[%emt 00:02:32]} 28. Rc7 {[%clk
00:08:44]} {[%emt 00:02:47]} Ke6 {[%clk 00:06:27]} {[%emt 00:00:38]} 29. h4
{[%clk 00:07:40]} {[%emt 00:01:33]} g6 {[%clk 00:05:45]} {[%emt 00:01:12]} 30.
R1c4 {[%clk 00:05:11]} {[%emt 00:02:59]} Rxc7 {[%clk 00:03:58]} {[%emt
00:02:17]} 31. Rxc7 {[%clk 00:05:37]} {[%emt 00:00:04]} Rd7 {[%clk 00:04:22]}
{[%emt 00:00:06]} 32. Rc4 {[%clk 00:05:42]} {[%emt 00:00:25]} Rd6 {[%clk
00:03:08]} {[%emt 00:01:45]} 33. f4 {[%clk 00:04:27]} {[%emt 00:01:45]} b5
{[%clk 00:00:51]} {[%emt 00:02:47]} 34. Re4 {[%clk 00:02:03]} {[%emt 00:02:54]}
Rd5 {[%clk 00:00:58]} {[%emt 00:00:24]} 35. fxe5 {[%clk 00:01:57]} {[%emt
00:00:35]} f5 {[%clk 00:00:57]} {[%emt 00:00:30]} 36. Rd4 {[%clk 00:01:24]}
{[%emt 00:01:03]} Kxe5 {[%clk 00:01:15]} {[%emt 00:00:13]} 37. f4+ {[%clk
00:01:04]} {[%emt 00:00:50]} Kd6 {[%clk 00:01:37]} {[%emt 00:00:08]} 38. Nf3
{[%clk 00:00:58]} {[%emt 00:00:36]} Nc6 {[%clk 00:01:13]} {[%emt 00:00:53]} 39.
Rxd5+ {[%clk 00:01:00]} {[%emt 00:00:28]} Kxd5 {[%clk 00:01:42]} {[%emt
00:00:01]} 40. Kd3 {[%clk 00:01:16]} {[%emt 00:00:14]} Na5 {[%clk 00:00:42]}
{[%emt 00:01:30]} 41. Nd4 {[%clk 00:00:43]} {[%emt 00:01:03]} Nc4 {[%clk
00:24:07]} {[%emt 00:07:04]} 42. b3 {[%clk 00:25:37]} {[%emt 00:05:37]} Nd6
{[%clk 00:14:00]} {[%emt 00:10:37]} 43. Ne2 {[%clk 00:05:11]} {[%emt 00:20:57]}
Ne4 {[%clk 00:12:04]} {[%emt 00:02:25]} 44. Kc2 {[%clk 00:02:23]} {[%emt
00:03:18]} h5 {[%clk 00:07:38]} {[%emt 00:04:56]} 45. Nc1 {[%clk 00:01:31]}
{[%emt 00:01:22]} Nf2 {[%clk 00:04:32]} {[%emt 00:03:36]} 46. Nd3 {[%clk
00:01:39]} {[%emt 00:00:22]} Nxd3 {[%clk 00:01:11]} {[%emt 00:03:51]} 47. Kxd3
{[%clk 00:02:04]} {[%emt 00:00:04]} a5 {[%clk 00:01:25]} {[%emt 00:00:17]} 48.
a4 {[%clk 00:01:58]} {[%emt 00:00:36]} bxa4 {[%clk 00:01:01]} {[%emt 00:00:55]}
49. bxa4 {[%clk 00:02:23]} {[%emt 00:00:04]} Kc5 {[%clk 00:01:26]} {[%emt
00:00:05]} 50. Kc3 {[%clk 00:02:49]} {[%emt 00:00:04]} Kd5 {[%clk 00:01:52]}
{[%emt 00:00:04]} 1/2-1/2

[Event "Top 12 Féminin 2026"]
[Site "Asnières-sur-Seine, France"]
[Date "2026.05.17"]
[Round "5.7"]
[White "Stoll, Lucia"]
[Black "Iglesias, Yosha"]
[Result "1/2-1/2"]
[TimeControl "1h30 / 40 moves + 30m + 30sec/move"]
[WhiteTitle "-"]
[BlackTitle "FM"]
[WhiteFideId "-"]
[BlackFideId "-"]
[WhiteElo "2103"]
[BlackElo "2325"]

1. e4 {[%emt 00:01:06]} c6 {[%clk 01:28:51]} {[%emt 00:01:04]} 2. d4 {[%clk
01:31:24]} {[%emt 00:00:05]} d5 {[%clk 01:29:17]} {[%emt 00:00:03]} 3. e5
{[%clk 01:31:51]} {[%emt 00:00:04]} c5 {[%clk 01:29:31]} {[%emt 00:00:16]} 4.
dxc5 {[%clk 01:32:16]} {[%emt 00:00:05]} e6 {[%clk 01:29:56]} {[%emt 00:00:04]}
5. a3 {[%clk 01:32:41]} {[%emt 00:00:06]} Bxc5 {[%clk 01:29:55]} {[%emt
00:00:31]} 6. Nf3 {[%clk 01:32:57]} {[%emt 00:00:14]} f6 {[%clk 01:25:42]}
{[%emt 00:04:42]} 7. b4 {[%clk 01:32:50]} {[%emt 00:00:38]} Be7 {[%clk
01:24:34]} {[%emt 00:01:37]} 8. Bb2 {[%clk 01:32:23]} {[%emt 00:00:58]} a5
{[%clk 01:24:17]} {[%emt 00:00:46]} 9. b5 {[%clk 01:32:35]} {[%emt 00:00:19]}
Nd7 {[%clk 01:24:41]} {[%emt 00:00:05]} 10. c4 {[%clk 01:32:47]} {[%emt
00:00:19]} Nxe5 {[%clk 01:22:49]} {[%emt 00:02:21]} 11. Nxe5 {[%clk 01:33:07]}
{[%emt 00:00:10]} fxe5 {[%clk 01:23:12]} {[%emt 00:00:06]} 12. Bxe5 {[%clk
01:33:27]} {[%emt 00:00:11]} Nf6 {[%clk 01:22:58]} {[%emt 00:00:43]} 13. Be2
{[%clk 01:33:44]} {[%emt 00:00:13]} O-O {[%clk 01:21:33]} {[%emt 00:01:55]} 14.
O-O {[%clk 01:33:24]} {[%emt 00:00:51]} Nd7 {[%clk 01:20:46]} {[%emt 00:01:16]}
15. Bg3 {[%clk 01:32:10]} {[%emt 00:01:45]} Nc5 {[%clk 01:19:21]} {[%emt
00:01:54]} 16. Nc3 {[%clk 01:32:07]} {[%emt 00:00:33]} d4 {[%clk 01:09:05]}
{[%emt 00:10:45]} 17. Na4 {[%clk 01:31:35]} {[%emt 00:01:03]} d3 {[%clk
01:08:46]} {[%emt 00:00:49]} 18. Bf3 {[%clk 01:31:44]} {[%emt 00:00:21]} Rxf3
{[%clk 01:07:59]} {[%emt 00:01:16]} 19. gxf3 {[%clk 01:32:09]} {[%emt
00:00:05]} b6 {[%clk 01:06:27]} {[%emt 00:02:01]} 20. Nxc5 {[%clk 01:31:01]}
{[%emt 00:01:38]} Bxc5 {[%clk 01:06:38]} {[%emt 00:00:19]} 21. Ra2 {[%clk
01:31:19]} {[%emt 00:00:13]} e5 {[%clk 01:04:01]} {[%emt 00:03:06]} 22. Rd2
{[%clk 01:30:42]} {[%emt 00:01:07]} Bf5 {[%clk 01:02:01]} {[%emt 00:02:30]} 23.
Re1 {[%clk 01:30:55]} {[%emt 00:00:16]} Bd4 {[%clk 00:58:43]} {[%emt 00:03:48]}
24. Bxe5 {[%clk 01:30:50]} {[%emt 00:00:37]} Qg5+ {[%clk 00:57:22]} {[%emt
00:01:50]} 25. Kh1 {[%clk 01:30:55]} {[%emt 00:00:26]} Bh3 {[%clk 00:56:07]}
{[%emt 00:01:44]} 26. Bg3 {[%clk 01:31:14]} {[%emt 00:00:12]} Bc3 {[%clk
00:54:47]} {[%emt 00:01:49]} 27. Rxd3 {[%clk 01:31:33]} {[%emt 00:00:12]} Bxe1
{[%clk 00:55:04]} {[%emt 00:00:13]} 28. Qxe1 {[%clk 01:32:00]} {[%emt
00:00:03]} h5 {[%clk 00:54:29]} {[%emt 00:01:04]} 29. Qe3 {[%clk 01:24:36]}
{[%emt 00:07:54]} Qg6 {[%clk 00:51:17]} {[%emt 00:03:43]} 30. Qe4 {[%clk
01:19:29]} {[%emt 00:05:38]} Re8 {[%clk 00:48:01]} {[%emt 00:03:45]} 31. Qd5+
{[%clk 01:10:20]} {[%emt 00:09:40]} Kh7 {[%clk 00:47:04]} {[%emt 00:01:26]} 32.
Rd1 {[%clk 00:57:55]} {[%emt 00:12:56]} h4 {[%clk 00:46:44]} {[%emt 00:00:49]}
33. c5 {[%clk 00:51:19]} {[%emt 00:07:06]} bxc5 {[%clk 00:43:57]} {[%emt
00:03:17]} 34. Qxc5 {[%clk 00:47:22]} {[%emt 00:04:27]} hxg3 {[%clk 00:39:37]}
{[%emt 00:04:50]} 35. hxg3 {[%clk 00:46:17]} {[%emt 00:01:35]} Bc8 {[%clk
00:26:59]} {[%emt 00:13:08]} 36. Kg2 {[%clk 00:43:49]} {[%emt 00:02:58]} Bb7
{[%clk 00:24:27]} {[%emt 00:03:02]} 37. Rh1+ {[%clk 00:38:44]} {[%emt
00:05:36]} Kg8 {[%clk 00:24:25]} {[%emt 00:00:31]} 38. Qc4+ {[%clk 00:38:31]}
{[%emt 00:00:44]} Qe6 {[%clk 00:16:23]} {[%emt 00:08:31]} 39. Qf4 {[%clk
00:28:01]} {[%emt 00:11:00]} Qe7 {[%clk 00:03:50]} {[%emt 00:13:03]} 40. Qf5
{[%clk 00:25:19]} {[%emt 00:03:12]} Rf8 {[%clk 00:03:17]} {[%emt 00:01:03]} 41.
Qh7+ {[%clk 00:24:38]} {[%emt 00:01:12]} Kf7 {[%clk 00:02:27]} {[%emt
00:01:19]} 42. Qh5+ {[%clk 00:18:50]} {[%emt 00:06:18]} Kg8 {[%clk 00:29:39]}
{[%emt 00:03:18]} 43. Qh7+ {[%clk 00:49:08]} {[%emt 00:00:13]} Kf7 {[%clk
00:30:03]} {[%emt 00:00:05]} 44. Qh5+ {[%clk 00:47:48]} {[%emt 00:01:50]} Kg8
{[%clk 00:30:07]} {[%emt 00:00:25]} 1/2-1/2